bitfinex/quotes_ETHUSD_20241217
["timestamp","ask_amount","ask_price","bid_price","bid_amount"]
[1734441335890,1.03877828,3991.8,3991.1,1.08321558]
[1734441336088,0.0313924,3991.5,3991.1,1.08321558]
[1734441336266,1.03877828,3991.8,3991.1,1.08321558]
[1734441336619,0.89437816,3991.7,3991.1,1.08321558]
[1734441336800,0.03141697,3991.7,3991.1,1.08321558]
[1734441337475,0.86293053,3991.6,3991.1,1.08321558]
[1734441337670,0.0313874,3991.5,3991.1,1.08321558]
[1734441338096,1.03877828,3991.8,3991.1,1.08321558]
[1734441338292,0.03137012,3991.4,3991.1,1.08321558]
[1734441338608,1.03877828,3991.8,3991.1,1.08321558]
[1734441338917,0.86303944,3991.7,3991.1,1.08321558]
[1734441339215,0.86303944,3991.6,3991.1,1.08321558]
[1734441339600,0.03137742,3991.5,3991.1,1.08321558]
[1734441340106,1.03877828,3991.8,3991.1,1.08321558]
[1734441340308,0.03136014,3991.4,3991.1,1.08321558]
[1734441340507,1.03877828,3991.8,3991.1,1.08321558]
[1734441340822,1.03877828,3991.9,3991.3,1.63321558]
[1734441341119,0.86314893,3991.8,3991.3,1.63321558]
[1734441341320,1.03877828,3991.9,3991.3,1.63321558]
[1734441341642,0.86315591,3991.8,3991.3,1.63321558]
[1734441342508,1.03877828,3991.9,3991.3,1.63321558]
[1734441342684,0.86315777,3991.8,3991.3,1.63321558]
[1734441342901,1.03877828,3991.9,3991.3,1.63321558]
[1734441343243,0.86316896,3991.8,3991.3,1.63321558]
[1734441343535,1.03877828,3991.9,3991.3,1.63321558]
[1734441343711,2.15799678,3991.8,3991.3,1.63321558]
[1734441344039,0.86319871,3991.7,3991.3,1.63321558]
[1734441344240,1.03877828,3991.9,3991.3,1.63321558]
[1734441344545,2.15813857,3991.8,3991.3,1.63321558]
[1734441344702,1.03877828,3991.9,3991.3,1.63321558]
[1734441344703,0.86325543,3991.7,3991.3,1.63321558]
[1734441344903,1.03877828,3991.9,3991.3,1.63321558]
[1734441345115,0.86328969,3991.8,3991.3,1.63321558]
[1734441345340,1.03877828,3991.9,3991.3,1.63321558]
[1734441345531,0.86334811,3991.8,3991.3,1.63321558]
[1734441345705,1.03877828,3991.9,3991.3,1.63321558]
[1734441345900,2.15833545,3991.8,3991.3,1.63321558]
[1734441346143,0.86330608,3991.7,3991.3,1.63321558]
[1734441346344,1.03877828,3991.9,3991.3,1.63321558]
[1734441346550,2.15831705,3991.8,3991.3,1.63321558]
[1734441346843,1.03877828,3991.9,3991.3,1.63321558]
[1734441346844,0.86332682,3991.7,3991.3,1.63321558]
[1734441347043,1.03877828,3991.9,3991.3,1.63321558]
[1734441347249,2.15819418,3991.8,3991.3,1.63321558]
[1734441347539,0.86327767,3991.7,3991.3,1.63321558]
[1734441347725,1.03877828,3991.9,3991.3,1.63321558]
[1734441347925,2.15832808,3991.8,3991.3,1.63321558]
[1734441348129,0.86333123,3991.7,3991.3,1.63321558]
[1734441348327,1.55816743,3992.1,3991.3,1.63321558]
[1734441348328,1.03877828,3991.8,3991.3,1.63321558]
[1734441348527,0.86342275,3991.7,3991.3,1.63321558]
[1734441348734,1.03877828,3991.9,3991.3,1.63321558]
[1734441348907,2.15854682,3991.8,3991.3,1.63321558]
[1734441349108,0.86341873,3991.7,3991.3,1.63321558]
[1734441349308,1.03877828,3991.9,3991.3,1.63321558]
[1734441349554,2.15858686,3991.8,3991.3,1.63321558]
[1734441349739,0.86343474,3991.7,3991.3,1.63321558]
[1734441350050,1.03877828,3991.9,3991.3,1.63321558]
[1734441350217,2.15859692,3991.8,3991.3,1.63321558]
[1734441350416,0.86343877,3991.7,3991.3,1.63321558]
[1734441350644,1.03877828,3991.9,3991.2,0.7904]
[1734441350854,2.15857997,3991.8,3991.2,0.7904]
[1734441351012,0.86343199,3991.7,3991.2,0.7904]
[1734441351357,1.03877828,3991.9,3991.2,0.7904]
[1734441351516,2.15851875,3991.8,3991.2,0.7904]
[1734441351717,0.8634075,3991.7,3991.2,0.7904]
[1734441351912,1.03877828,3991.8,3991.2,0.7904]
[1734441352110,0.02938375,3991.6,3991.2,0.7904]
[1734441352348,0.02940103,3991.7,3991.2,0.7904]
[1734441352547,0.02936647,3991.5,3991.2,0.7904]
[1734441352759,0.02938375,3991.6,3991.2,0.7904]
[1734441352972,0.02934918,3991.4,3991.2,0.7904]
[1734441353267,1.03877828,3991.8,3991.2,0.7904]
[1734441353472,0.0293319,3991.3,3991.2,0.7904]
[1734441353977,0.8107,3991.6,3990.8,2.90915607]
[1734441354147,0.02940681,3991.3,3990.8,1.86671558]
[1734441354350,1.84947828,3991.6,3990.8,1.86671558]
[1734441354564,0.02938453,3991.2,3990.8,1.86671558]
[1734441354737,1.84947828,3991.6,3990.8,1.86671558]
[1734441355050,0.86335909,3991.5,3990.8,1.86671558]
[1734441355368,0.89277676,3991.4,3990.8,1.86671558]
[1734441355536,0.0294191,3991.4,3990.8,1.86671558]
[1734441355940,1.84947828,3991.6,3990.8,1.86671558]
[1734441356140,0.02934691,3991.3,3990.8,1.86671558]
[1734441356460,0.02932962,3991.2,3990.8,1.86671558]
[1734441356683,1.03877828,3991.5,3990.8,1.86671558]
[1734441356838,2.15872177,3991.4,3990.8,1.86671558]
[1734441357174,0.86348871,3991.3,3990.8,1.86671558]
[1734441357338,0.02936419,3991.4,3990.8,1.86671558]
[1734441357671,0.02932962,3991.2,3990.8,1.86671558]
[1734441357877,0.86352884,3991.3,3990.8,1.86671558]
[1734441357878,0.02934691,3991.3,3990.8,1.86671558]
[1734441358063,0.02932962,3991.2,3990.8,1.86671558]
[1734441358261,1.03877828,3991.5,3990.8,1.86671558]
[1734441358579,1.03877828,3991.3,3990.8,1.08321558]
[1734441358748,2.15909921,3991.2,3990.8,1.08321558]
[1734441359078,0.86363968,3991.1,3990.8,1.08321558]
[1734441359374,0.02917025,3991.0,3990.8,1.08321558]
[1734441359775,1.55816743,3991.4,3990.8,1.08321558]
[1734441359776,1.03877828,3991.4,3990.8,1.08321558]
[1734441359936,0.02915296,3990.9,3990.8,1.08321558]
[1734441360143,1.03877828,3991.4,3990.8,1.08321558]
[1734441360474,0.02915296,3990.9,3990.8,1.08321558]
[1734441360674,1.03877828,3991.2,3990.8,1.08321558]
[1734441360879,2.15922131,3991.1,3990.8,1.08321558]
[1734441361105,0.86368852,3991.0,3990.8,1.08321558]
[1734441361262,0.02917025,3991.0,3990.8,1.08321558]
[1734441361442,1.03877828,3991.2,3990.8,1.08321558]
[1734441361637,1.67433108,3991.1,3990.5,0.55]
[1734441361840,0.02918754,3991.1,3990.9,0.8219]
[1734441362306,1.03877828,3991.5,3990.9,1.09506556]
[1734441362605,0.86361645,3991.4,3991.0,0.55]
[1734441362745,0.02913456,3991.4,3991.1,0.8219]
[1734441363180,1.03877828,3991.6,3991.1,0.8219]
[1734441363381,0.02911727,3991.3,3991.2,1.08321558]
[1734441363584,1.03877828,3991.6,3991.2,1.08321558]
[1734441363764,2.07755657,3992.0,3991.2,1.08321558]
[1734441363765,0.02911727,3991.3,3991.2,1.08321558]
[1734441363960,1.03877828,3991.7,3991.2,1.08321558]
[1734441364254,2.15903607,3991.6,3991.2,1.08321558]
[1734441364470,0.89276627,3991.5,3991.2,1.08321558]
[1734441364671,0.02915184,3991.5,3991.4,1.90511558]
[1734441364983,1.03877828,3992.1,3991.5,0.55]
[1734441365144,0.86368931,3992.0,3991.9,1.08321558]
[1734441365349,2.15921922,3992.0,3991.9,1.08321558]
[1734441366457,0.86368931,3992.0,3991.9,1.08321558]
[1734441366657,2.1589948,3992.0,3991.9,1.08321558]
[1734441367081,2.18843768,3992.0,3991.6,1.08321558]
[1734441367285,0.02944288,3992.0,3991.6,1.08321558]
[1734441368771,1.03877828,3992.1,3991.6,1.08321558]
[1734441369123,0.89315256,3992.0,3991.6,1.08321558]
[1734441369402,0.02974736,3992.0,3991.6,1.08321558]
[1734441369704,1.03877828,3992.2,3991.6,1.08321558]
[1734441369906,2.18822536,3992.1,3991.6,1.08321558]
[1734441370116,0.86338229,3992.0,3991.6,1.08321558]
[1734441370404,0.02973508,3991.9,3991.6,1.08321558]
[1734441370901,1.03877828,3992.1,3991.6,1.08321558]
[1734441371109,2.18801183,3992.0,3991.6,1.08321558]
[1734441371407,2.18801183,3992.0,3991.5,0.55]
[1734441371408,0.86328936,3991.9,3991.5,0.55]
[1734441371570,0.02975235,3992.0,3991.5,0.55]
[1734441371777,0.0297178,3991.8,3991.5,0.55]
[1734441372079,0.02970051,3991.7,3991.5,0.55]
[1734441372279,1.03877828,3992.1,3991.5,0.55]
[1734441372480,2.18808456,3992.0,3991.5,0.55]
[1734441372729,0.86333288,3991.9,3991.5,0.55]
[1734441373028,0.7828,3991.9,3991.1,0.8219]
[1734441373187,2.18788831,3991.8,3991.1,0.8219]
[1734441373527,2.18788831,3991.8,3990.7,2.94755607]
[1734441373528,3.19694879,3991.7,3990.7,2.94755607]
[1734441373682,3.97974879,3991.6,3990.8,3.0]
[1734441373882,2.18791136,3991.5,3990.7,4.90511558]
[1734441374103,2.18791136,3991.5,3990.4,1.56366074]
[1734441374104,3.19684629,3991.4,3990.4,1.86434049]
[1734441374326,2.18764951,3991.3,3990.4,1.86434049]
[1734441374486,0.86311655,3991.2,3990.4,0.8219]
[1734441374681,0.02954693,3991.1,3990.4,0.8219]
[1734441375202,0.02954693,3991.1,3990.4,1.86434049]
[1734441375398,1.03877828,3991.4,3990.5,0.55]
[1734441375602,0.02952964,3991.0,3990.5,0.55]
[1734441375818,1.03877828,3991.4,3990.5,0.55]
[1734441375997,0.02951235,3990.9,3990.5,0.55]
[1734441376214,1.03877828,3991.4,3990.5,3.55]
[1734441376525,0.86303334,3991.3,3990.5,0.55]
[1734441376698,0.0295815,3991.3,3990.5,0.55]
[1734441377033,1.03877828,3991.5,3990.5,0.55]
[1734441377331,0.89266411,3991.4,3990.5,0.55]
[1734441377500,0.86306533,3991.3,3990.5,0.55]
[1734441377831,0.02956421,3991.2,3990.5,0.55]
[1734441377991,0.02956421,3991.2,3990.6,1.08321558]
[1734441378393,1.03877828,3991.5,3990.6,1.08321558]
[1734441378627,0.02954693,3991.1,3990.6,1.08321558]
[1734441378927,0.02952964,3991.0,3990.6,1.08321558]
[1734441379134,1.03877828,3991.5,3990.6,1.08321558]
[1734441379430,0.02951235,3990.9,3990.5,1.08321558]
[1734441379633,0.753,3991.3,3990.5,1.08321558]
[1734441380129,0.753,3991.3,3990.8,1.08321558]
[1734441380130,0.02956421,3991.2,3990.8,1.08321558]
[1734441380330,1.79177828,3991.5,3990.8,1.08321558]
[1734441380490,0.89222141,3991.4,3990.8,1.08321558]
[1734441380693,0.02911457,3991.4,3990.8,1.08321558]
[1734441382431,0.753,3991.2,3990.5,1.08321558]
[1734441382601,0.753,3991.2,3990.2,1.08321558]
[1734441382931,0.753,3991.0,3990.2,1.08321558]
[1734441383134,0.02902315,3990.9,3990.2,1.08321558]
[1734441383907,0.02902315,3990.9,3990.2,2.13228221]
[1734441384323,0.02902315,3990.9,3990.2,5.13228221]
[1734441384520,0.753,3991.0,3990.2,5.13228221]
[1734441384699,0.02902315,3990.9,3990.2,2.13228221]
[1734441385030,0.02902315,3990.9,3990.5,1.08321558]
[1734441386223,0.02902315,3990.9,3990.1,4.04906663]
[1734441386424,0.02902315,3990.9,3990.2,1.63321558]
[1734441386611,0.02902315,3990.9,3990.2,1.08321558]
[1734441386934,0.02902315,3990.9,3990.5,1.08321558]
[1734441388105,0.02902315,3990.9,3990.8,1.08321558]
[1734441388303,0.753,3991.4,3990.8,1.08321558]
[1734441388498,0.02878775,3991.3,3991.1,1.08321558]
[1734441388925,1.04363657,3992.1,3991.2,1.3418]
[1734441389100,0.02890872,3992.0,3991.6,1.08321558]
[1734441389310,0.753,3992.2,3991.6,1.08321558]
[1734441389834,0.02938529,3992.1,3991.9,1.08321558]
[1734441389996,0.02938529,3992.1,3991.9,1.87501558]
[1734441390199,0.753,3992.5,3991.9,1.87501558]
[1734441390406,0.02936801,3992.0,3991.9,1.87501558]
[1734441390625,0.753,3992.5,3991.9,1.87501558]
[1734441391154,0.02995623,3992.4,3991.9,1.87501558]
[1734441391615,0.02995623,3992.4,3991.9,1.08321558]
[1734441395224,0.02995623,3992.4,3991.7,0.55]
[1734441396027,0.02995623,3992.4,3991.8,1.08321558]
[1734441396208,0.02995623,3992.4,3991.7,0.55]
[1734441396407,0.02995623,3992.4,3991.8,1.08321558]
[1734441397617,0.753,3992.5,3991.8,1.08321558]
[1734441398045,0.02926218,3992.4,3991.8,1.08321558]
[1734441398363,0.753,3992.5,3991.8,1.08321558]
[1734441398962,0.02926218,3992.4,3991.8,1.08321558]
[1734441399583,0.753,3992.5,3991.8,1.08321558]
[1734441399927,0.02926218,3992.4,3991.8,1.08321558]
[1734441400125,0.753,3992.5,3991.8,1.08321558]
[1734441400423,0.02926218,3992.4,3991.8,1.08321558]
[1734441400838,0.753,3992.5,3991.8,1.08321558]
[1734441403749,1.04363657,3993.2,3992.4,1.08321558]
[1734441403933,0.85158309,3993.1,3992.7,1.08321558]
[1734441404689,0.02938309,3993.1,3992.7,1.90301558]
[1734441404976,0.8222,3994.0,3993.0,1.08321558]
[1734441405191,0.8222,3994.0,3993.4,1.08321558]
[1734441405786,0.8222,3994.0,3992.7,0.8198]
[1734441405990,0.8222,3994.0,3993.0,1.08321558]
[1734441406779,0.7966,3993.9,3992.2,1.3477]
[1734441407100,0.7966,3993.6,3991.9,0.7977]
[1734441407302,0.7966,3993.6,3993.1,1.08321558]
[1734441415321,0.7966,3994.6,3993.4,1.08321558]
[1734441415639,0.7966,3994.4,3993.4,1.08321558]
[1734441415999,0.03047479,3994.3,3993.4,1.08321558]
[1734441416314,0.7966,3994.2,3993.4,1.08321558]
[1734441416514,0.0304253,3994.1,3993.4,1.08321558]
[1734441418075,0.803,3994.0,3993.4,1.08321558]
[1734441418394,0.03039078,3993.9,3992.8,0.55]
[1734441418730,1.08321558,3994.7,3992.9,1.08321558]
[1734441418731,0.803,3993.8,3992.9,1.08321558]
[1734441419321,0.03043608,3993.7,3992.9,1.08321558]
[1734441419754,0.803,3993.8,3992.9,1.08321558]
[1734441420047,0.03043608,3993.7,3992.9,1.08321558]
[1734441420387,0.803,3993.8,3992.9,1.08321558]
[1734441420682,0.03043608,3993.7,3992.9,1.08321558]
[1734441420882,0.803,3993.8,3992.9,1.08321558]
[1734441422701,0.803,3993.8,3992.5,3.0]
[1734441422702,0.803,3993.8,3993.2,1.08321558]
[1734441422885,0.803,3993.8,3993.2,1.86901558]
[1734441423900,0.7565,3994.8,3993.6,1.08321558]
[1734441424111,0.02938821,3994.7,3994.2,1.08321558]
[1734441424352,0.7565,3994.8,3994.2,1.08321558]
[1734441424524,0.02938821,3994.7,3994.2,1.08321558]
[1734441424694,0.7565,3994.8,3994.2,1.08321558]
[1734441424885,0.02938821,3994.7,3994.2,1.08321558]
[1734441425086,0.7565,3994.8,3994.2,1.08321558]
[1734441425328,0.02938821,3994.7,3994.2,1.08321558]
[1734441425527,4.62966215,3995.5,3993.9,1.08321558]
[1734441425528,0.7565,3994.6,3993.9,1.08321558]
[1734441428946,0.7565,3994.6,3994.2,1.08321558]
[1734441431911,0.7565,3995.5,3994.5,1.08321558]
[1734441432145,0.0298234,3995.4,3994.5,1.08321558]
[1734441432326,0.7565,3995.3,3994.5,1.08321558]
[1734441432511,0.0297889,3995.2,3994.5,1.08321558]
[1734441434152,0.7565,3995.1,3994.1,1.08321558]
[1734441434444,0.7862544,3995.0,3994.1,1.08321558]
[1734441436846,0.7862544,3995.0,3994.4,1.08321558]
[1734441437047,0.7862544,3995.0,3994.7,1.08321558]
[1734441437426,0.7565,3995.0,3994.7,1.08321558]
[1734441444869,0.7565,3995.0,3994.4,1.08321558]
[1734441447531,0.0303759,3994.9,3994.4,1.08321558]
[1734441447740,0.7565,3995.0,3994.4,1.08321558]
[1734441448100,0.0303759,3994.9,3994.4,1.08321558]
[1734441448459,0.7565,3995.0,3994.4,1.08321558]
[1734441448842,0.0303759,3994.9,3994.4,1.08321558]
[1734441449343,0.7565,3995.0,3994.4,1.08321558]
[1734441449652,0.0303759,3994.9,3994.4,1.08321558]
[1734441456485,0.0303759,3994.9,3994.0,0.7928]
[1734441457889,0.0303759,3994.9,3994.0,1.12450626]
[1734441458280,0.0303759,3994.9,3994.8,1.08321558]
[1734441458481,0.0303759,3994.9,3994.8,6.84093742]
[1734441458684,0.0303759,3994.9,3994.8,7.14991241]
[1734441458995,0.7911,3995.8,3994.9,3.55]
[1734441459292,0.7911,3995.8,3995.6,1.08321558]
[1734441459667,0.02812859,3995.7,3995.6,1.08321558]
[1734441460187,0.02812859,3995.7,3995.2,2.34174574]
[1734441460417,0.7911,3996.1,3995.3,3.7928]
[1734441460762,0.02818033,3996.0,3995.3,3.7928]
[1734441466484,0.02818033,3996.0,3995.2,2.34174574]
[1734441466659,0.02818033,3996.0,3995.0,1.41248125]
[1734441466867,0.7811,3995.9,3994.8,5.34174574]
[1734441467381,0.02906396,3995.8,3994.8,5.34174574]
[1734441468305,0.02906396,3995.8,3994.8,5.673452]
[1734441468466,0.02906396,3995.8,3994.9,3.0]
[1734441468666,0.02906396,3995.8,3994.9,3.33170626]
[1734441469086,0.02906396,3995.8,3994.9,3.64068125]
[1734441469406,0.02906396,3995.8,3995.3,3.0]
[1734441469600,0.02906396,3995.8,3995.3,3.33170626]
[1734441469772,0.02906396,3995.8,3995.6,2.34174574]
[1734441469975,1.04136313,3996.6,3995.7,4.10350626]
[1734441470175,0.02824137,3996.5,3996.1,2.34174574]
[1734441470486,0.7811,3996.7,3996.1,2.34174574]
[1734441470693,0.02822413,3996.4,3996.1,2.34174574]
[1734441471003,0.02820689,3996.3,3996.1,2.34174574]
[1734441471187,0.7811,3996.7,3996.1,2.34174574]
[1734441471377,0.02825861,3996.6,3996.1,2.34174574]
[1734441471708,0.7811,3997.0,3996.1,2.34174574]
[1734441471709,0.7811,3997.0,3996.2,0.7718]
[1734441471868,0.0284359,3996.5,3996.2,3.7718]
[1734441472196,0.7811,3997.0,3996.2,3.7718]
[1734441472596,0.02850485,3996.9,3996.2,3.7718]
[1734441477171,0.02850485,3996.9,3995.8,3.0]
[1734441477172,0.7811,3996.8,3995.8,3.0]
[1734441477377,0.02894419,3996.7,3995.8,3.0]
[1734441477901,0.7811,3996.8,3995.8,3.0]
[1734441478321,0.0289043,3996.7,3995.8,3.0]
[1734441478678,0.7811,3996.8,3995.8,3.0]
[1734441479194,0.0289043,3996.7,3995.8,3.0]
[1734441479391,0.7811,3996.6,3995.4,4.08077499]
[1734441479596,0.7811,3996.6,3995.4,4.41248125]
[1734441479800,0.7811,3996.6,3995.5,0.33170626]
[1734441480382,0.02883492,3996.5,3995.5,0.33170626]
[1734441480581,0.7811,3996.4,3995.5,0.33170626]
[1734441480784,0.80230542,3996.3,3995.4,3.55]
[1734441481709,0.80230542,3996.3,3995.4,3.88170626]
[1734441485060,0.80230542,3996.3,3994.5,3.478852]
[1734441485396,0.86003353,3996.2,3994.5,3.478852]
[1734441485711,0.80216622,3996.1,3994.5,3.478852]
[1734441486233,0.80216622,3996.1,3994.6,0.55]
[1734441486434,0.7735,3995.9,3994.6,3.88170626]
[1734441486598,0.18435294,3996.0,3994.6,3.88170626]
[1734441486599,0.8011876,3995.8,3994.7,0.33170626]
[1734441488261,0.8011876,3995.8,3994.7,0.64068125]
[1734441488536,0.8011876,3995.8,3994.8,0.30897499]
[1734441488723,0.8011876,3995.8,3994.9,0.33170626]
[1734441489302,0.8011876,3995.8,3994.9,0.64068125]
[1734441491240,0.0276876,3995.8,3995.0,3.8054]
[1734441491443,0.0276876,3995.8,3995.4,0.55]
[1734441491620,0.0276876,3995.8,3995.4,4.19068125]
[1734441491828,0.7735,3996.1,3995.4,4.19068125]
[1734441495303,0.7735,3996.1,3995.7,2.34174574]
[1734441495508,0.7735,3996.7,3995.7,5.34174574]
[1734441495756,0.7735,3996.7,3995.8,3.55]
[1734441495908,0.02736166,3996.6,3995.8,3.55]
[1734441496107,0.02736166,3996.6,3996.1,2.34174574]
[1734441496313,0.7735,3996.7,3996.1,2.34174574]
[1734441496745,0.7735,3996.7,3996.2,3.0]
[1734441497109,0.8083,3997.3,3996.2,3.0]
[1734441497312,0.02766593,3996.6,3996.2,3.0]
[1734441497506,0.8083,3997.3,3996.3,0.55]
[1734441497814,0.02776934,3997.2,3996.3,0.55]
[1734441498611,0.8083,3997.3,3996.3,0.55]
[1734441499022,0.02834782,3997.2,3996.3,0.55]
[1734441499249,0.8083,3997.3,3996.3,0.55]
[1734441499662,0.02838272,3997.2,3996.3,0.55]
[1734441500160,0.8083,3997.3,3996.3,0.55]
[1734441500550,0.02838272,3997.2,3996.6,0.55]
[1734441500864,0.8083,3997.3,3996.6,0.55]
[1734441501250,0.02839269,3997.2,3996.6,0.55]
[1734441501429,0.8083,3997.3,3996.6,0.55]
[1734441501628,0.02839269,3997.2,3996.6,0.55]
[1734441501823,0.8083,3997.3,3996.6,0.55]
[1734441502023,0.02839269,3997.2,3996.6,0.55]
[1734441502230,0.8083,3997.3,3996.6,0.55]
[1734441502433,0.02839269,3997.2,3996.6,0.55]
[1734441502667,0.8083,3997.3,3996.7,0.8005]
[1734441503272,0.8083,3997.3,3996.8,0.55]
[1734441503433,0.8083,3997.6,3997.0,0.55]
[1734441503632,0.02895293,3997.5,3997.0,0.55]
[1734441504454,0.02895293,3997.5,3997.0,3.55]
[1734441505159,0.8083,3997.6,3997.0,3.55]
[1734441505756,0.8083,3997.6,3997.0,3.88170626]
[1734441509459,0.8083,3998.5,3997.4,0.55]
[1734441509660,0.02927747,3998.4,3997.4,0.55]
[1734441509980,0.8083,3998.3,3997.4,3.55]
[1734441510567,0.02926793,3998.2,3997.4,3.55]
[1734441510767,0.02926793,3998.2,3997.7,2.34174574]
[1734441510982,0.8083,3998.3,3997.7,2.34174574]
[1734441516258,0.8083,3998.3,3997.6,0.55]
[1734441516452,0.8083,3998.3,3997.4,3.55]
[1734441516781,0.76859842,3998.3,3997.4,3.55]
[1734441517169,0.76859842,3998.3,3997.4,0.55]
[1734441517470,0.76859842,3998.3,3997.2,3.55]
[1734441517667,0.02972645,3998.2,3997.2,3.55]
[1734441517860,1.04136313,3999.2,3997.2,3.55]
[1734441518060,2.17610526,3999.1,3997.2,3.55]
[1734441518413,0.02988144,3999.1,3997.2,3.55]
[1734441519708,0.7942,3999.0,3997.2,3.55]
[1734441519850,0.7942,3999.0,3997.4,0.55]
[1734441520050,0.02982707,3998.9,3997.2,3.55]
[1734441520249,0.7942,3998.8,3997.2,3.55]
[1734441520498,0.02979263,3998.7,3997.2,3.55]
[1734441520649,0.7942,3998.6,3997.2,3.55]
[1734441520849,0.7942,3998.6,3997.4,0.55]
[1734441521150,0.7942,3998.6,3997.2,3.55]
[1734441522254,0.7942,3998.6,3997.2,3.85897499]
[1734441522479,0.7942,3998.6,3997.4,0.55]
[1734441523184,0.7942,3998.6,3997.4,0.30897499]
[1734441523985,0.7942,3998.6,3997.6,1.07972396]
[1734441524364,0.7942,3998.4,3997.6,1.07972396]
[1734441524891,0.7942,3998.2,3997.1,0.55]
[1734441525202,0.7942,3998.2,3997.5,1.07972396]
[1734441525406,0.7942,3998.0,3997.5,1.07972396]
[1734441526228,0.7942,3998.0,3997.8,1.07972396]
[1734441541841,0.7662,3997.8,3996.8,0.7522]
[1734441542011,0.7662,3997.8,3996.7,1.07972396]
[1734441542210,0.79589115,3997.7,3996.7,1.07972396]
[1734441542416,0.79589115,3997.7,3997.0,1.07972396]
[1734441543237,0.79589115,3997.7,3996.6,1.04587018]
[1734441543461,0.7662,3997.7,3996.9,1.07972396]
[1734441544749,0.02955932,3997.6,3996.9,1.07972396]
[1734441546264,0.02955932,3997.6,3997.0,1.07972396]
[1734441546870,0.02955932,3997.6,3996.7,1.59587018]
[1734441547018,0.7662,3997.5,3996.5,4.04587018]
[1734441547315,0.7662,3997.3,3996.3,1.04587018]
[1734441547515,0.7662,3997.3,3996.0,1.04587018]
[1734441547516,0.7662,3997.1,3996.0,1.04587018]
[1734441547718,0.7662,3997.1,3995.7,2.12559414]
[1734441547719,0.7662,3996.8,3995.7,2.12559414]
[1734441547921,0.7662,3996.5,3995.7,1.07972396]
[1734441548320,0.02884415,3996.4,3995.7,1.07972396]
[1734441548839,0.02884415,3996.4,3996.3,1.07972396]
[1734441549039,0.02884415,3996.4,3996.3,1.72040521]
[1734441549247,0.7662,3996.8,3996.3,0.64068125]
[1734441549465,0.7662,3996.8,3996.3,1.72040521]
[1734441549762,0.02841732,3996.7,3996.3,1.41143022]
[1734441550121,0.7662,3996.8,3996.3,1.41143022]
[1734441550527,0.02841732,3996.7,3996.3,1.41143022]
[1734441550751,0.02841732,3996.7,3996.3,0.33170626]
[1734441551037,0.7662,3996.8,3996.1,1.07972396]
[1734441551240,0.02838014,3996.6,3996.1,1.07972396]
[1734441551420,0.02839738,3996.7,3996.4,1.07972396]
[1734441551633,0.7662,3996.8,3996.4,1.07972396]
[1734441551832,0.02836519,3996.6,3996.4,1.07972396]
[1734441552037,0.7662,3996.8,3996.4,1.07972396]
[1734441552592,0.02838242,3996.7,3996.4,1.07972396]
[1734441552923,0.7662,3996.8,3996.4,1.07972396]
[1734441553232,0.02837516,3996.6,3996.4,1.07972396]
[1734441553437,0.7662,3996.8,3996.4,1.07972396]
[1734441553970,0.0283575,3996.7,3996.4,1.07972396]
[1734441554456,0.7662,3997.2,3996.5,0.66568521]
[1734441554658,0.7662,3997.2,3997.1,1.07972396]
[1734441555556,1.04136313,3998.0,3997.1,1.07972396]
[1734441555557,0.7662,3997.9,3997.1,1.07972396]
[1734441556054,0.7933,3997.7,3996.2,0.55]
[1734441556224,0.7933,3997.7,3996.6,1.07972396]
[1734441556418,0.7933,3997.7,3996.2,0.55]
[1734441556419,0.97676631,3997.7,3996.5,1.07972396]
[1734441557359,0.97676631,3997.7,3996.2,0.57501886]
[1734441557360,0.7933,3997.7,3996.8,1.07972396]
[1734441557523,0.7933,3997.7,3997.1,1.07972396]
[1734441559955,0.7933,3998.1,3997.3,0.8005]
[1734441560176,0.7933,3998.1,3997.4,0.55]
[1734441561195,0.7933,3998.1,3997.4,3.55]
[1734441561328,0.7933,3998.4,3997.7,2.33928934]
[1734441561830,0.0282706,3998.3,3997.7,2.33928934]
[1734441565470,0.0282706,3998.3,3998.1,2.33928934]
[1734441565672,0.0282706,3998.3,3998.2,0.02500724]
[1734441565877,0.7933,3998.8,3998.2,0.02500724]
[1734441566390,0.7933,3998.8,3998.1,2.33928934]
[1734441567441,0.7933,3999.5,3998.5,2.33928934]
[1734441567843,0.02880875,3999.4,3998.5,2.33928934]
[1734441568089,0.02880875,3999.4,3998.6,0.55]
[1734441569481,0.02880875,3999.4,3999.3,2.33928934]
[1734441569644,0.02880875,3999.4,3999.3,6.2371781]
[1734441569946,0.7933,4000.3,3999.4,3.55]
[1734441570149,0.7933,4000.3,3999.4,3.89801521]
[1734441570395,0.02841969,4000.2,3999.4,3.89801521]
[1734441570545,0.7933,4000.3,3999.4,3.89801521]
[1734441570979,0.7933,4000.3,3999.5,0.34801521]
[1734441571177,0.7933,4000.3,3999.6,0.55]
[1734441571493,0.7933,4000.3,3999.6,0.89801521]
[1734441571695,0.7933,4000.3,3999.7,0.34801521]
[1734441572552,0.7933,4000.3,3999.5,0.55]
[1734441573151,0.7933,4000.3,3999.5,0.89801521]
[1734441573353,0.7933,4000.3,3999.5,0.55]
[1734441573596,0.7933,4000.3,3999.6,0.34801521]
[1734441576694,0.7933,4000.3,3999.5,0.55]
[1734441576880,0.7933,4000.3,3999.4,3.0]
[1734441577086,0.02917635,4000.2,3999.1,0.34801521]
[1734441577388,0.7933,4000.3,3999.2,0.32563042]
[1734441577600,0.7933,4000.3,3999.3,0.34801521]
[1734441580412,0.7933,4000.3,3999.4,3.87563042]
[1734441580608,0.7933,4000.3,3999.5,0.34801521]
[1734441583923,0.7933,4000.3,3999.3,2.33928934]
[1734441585490,0.7933,4000.3,3999.7,2.33928934]
[1734441585814,0.7933,4000.3,3999.8,0.67364563]
[1734441587924,0.7933,4000.3,3999.8,0.34801521]
[1734441589822,0.7933,4000.3,3999.7,2.33928934]
[1734441591792,0.7933,4000.3,3999.4,3.0]
[1734441592450,0.7933,4000.3,3999.3,2.33928934]
[1734441595551,0.7933,4000.3,3999.7,2.33928934]
[1734441601759,0.7933,4000.3,3999.4,3.55]
[1734441602466,0.7933,4000.3,3999.4,3.0]
[1734441602668,0.7933,4000.3,3999.3,2.33928934]
[1734441605364,0.02796822,4000.2,3999.3,2.33928934]
[1734441605668,0.02796822,4000.2,3999.3,2.66491976]
[1734441605871,0.7933,4000.3,3999.4,3.0]
[1734441606068,0.7933,4000.3,3999.8,1.07849857]
[1734441606270,0.02796822,4000.2,3999.8,1.07849857]
[1734441606572,0.7933,4000.3,3999.8,1.07849857]